bitfinex/quotes_BTCUSD_20240617
["timestamp","ask_amount","ask_price","bid_price","bid_amount"]
[1718584309889,0.00855,66804.0,66803.0,3.49926035]
[1718584310496,0.00855,66804.0,66803.0,3.59926035]
[1718584310699,0.00855,66804.0,66803.0,3.19987335]
[1718584311165,0.00855,66804.0,66803.0,3.39716131]
[1718584313046,0.00855,66804.0,66803.0,3.08777431]
[1718584313243,0.00855,66804.0,66803.0,3.10567126]
[1718584313444,0.00855,66804.0,66803.0,3.11567126]
[1718584313644,0.00855,66804.0,66803.0,3.10567126]
[1718584313878,0.00855,66804.0,66803.0,3.11567126]
[1718584314269,0.00855,66804.0,66803.0,3.41505826]
[1718584314625,0.00855,66804.0,66803.0,3.11567126]
[1718584314828,0.00855,66804.0,66803.0,3.41505826]
[1718584315783,0.00855,66804.0,66803.0,3.11567126]
[1718584317197,0.00855,66804.0,66803.0,3.09777431]
[1718584317396,0.00855,66804.0,66803.0,3.08777431]
[1718584317839,0.00855,66804.0,66803.0,3.09777431]
[1718584320413,0.00855,66804.0,66803.0,3.39716131]
[1718584321056,0.00855,66804.0,66803.0,3.34716131]
[1718584321269,0.00855,66804.0,66803.0,3.45704031]
[1718584321490,0.00855,66804.0,66803.0,3.55704031]
[1718584321720,0.00855,66804.0,66803.0,3.65914229]
[1718584321931,0.00855,66804.0,66803.0,3.74035313]
[1718584323405,0.00855,66804.0,66803.0,4.03974013]
[1718584323811,0.0791,66824.0,66823.0,1.08540149]
[1718584324027,0.1446,66824.0,66823.0,2.10128319]
[1718584324238,0.01837634,66835.0,66834.0,0.01824726]
[1718584324456,0.16608352,66835.0,66834.0,0.76883505]
[1718584324668,0.14770718,66835.0,66834.0,0.76883505]
[1718584324908,0.14770718,66835.0,66834.0,0.89560866]
[1718584325327,0.14809595,66835.0,66834.0,0.89560866]
[1718584325909,0.14809595,66835.0,66834.0,0.91860866]
[1718584326499,0.14809595,66835.0,66834.0,0.93060866]
[1718584326748,0.14770718,66835.0,66834.0,0.93060866]
[1718584326982,0.14770718,66835.0,66834.0,0.94460866]
[1718584327617,0.14809595,66835.0,66834.0,0.94460866]
[1718584329118,0.14770718,66835.0,66834.0,0.94460866]
[1718584330527,0.14809595,66835.0,66834.0,0.94460866]
[1718584331525,0.29771795,66835.0,66834.0,0.81783505]
[1718584331728,0.14809595,66835.0,66834.0,0.81783505]
[1718584333321,0.14059595,66835.0,66834.0,0.81783505]
[1718584334321,0.14059595,66835.0,66834.0,0.79183505]
[1718584334538,0.14059595,66835.0,66834.0,0.92990846]
[1718584334764,0.14020718,66835.0,66834.0,0.92990846]
[1718584335190,0.14059595,66835.0,66834.0,0.92990846]
[1718584335387,0.14020718,66835.0,66834.0,0.92990846]
[1718584335853,0.14059595,66835.0,66834.0,0.94390846]
[1718584336014,0.14059595,66835.0,66834.0,0.92990846]
[1718584336216,0.14059595,66835.0,66834.0,0.91590846]
[1718584336393,0.14059595,66835.0,66834.0,0.94290846]
[1718584336596,0.14059595,66835.0,66834.0,0.92890846]
[1718584337135,0.14059595,66835.0,66834.0,0.91590846]
[1718584337311,0.1371,66835.0,66834.0,0.92790846]
[1718584337514,0.1371,66835.0,66834.0,1.39078046]
[1718584337722,0.14023235,66835.0,66834.0,1.69002846]
[1718584337932,0.1371,66835.0,66834.0,1.69002846]
[1718584338137,0.13795,66835.0,66834.0,1.69002846]
[1718584338361,0.12295,66835.0,66834.0,1.69002846]
[1718584338562,0.12295,66835.0,66834.0,1.98927646]
[1718584338772,0.00085,66835.0,66834.0,2.30813569]
[1718584338927,0.00085,66835.0,66834.0,2.78061682]
[1718584339134,0.00085,66835.0,66834.0,3.08102227]
[1718584339350,0.00085,66835.0,66834.0,3.53043027]
[1718584339573,0.00085,66835.0,66834.0,3.71664926]
[1718584339803,0.00085,66835.0,66834.0,3.87730126]
[1718584340018,0.00085,66835.0,66834.0,3.54205326]
[1718584340233,0.00085,66835.0,66834.0,3.40540126]
[1718584340445,0.00085,66835.0,66834.0,3.52902625]
[1718584340657,0.00085,66835.0,66834.0,3.54300933]
[1718584340860,0.00085,66835.0,66834.0,3.51250828]
[1718584341058,0.00085,66835.0,66834.0,3.10253627]
[1718584341263,0.00085,66835.0,66834.0,3.03786301]
[1718584342130,0.00085,66835.0,66834.0,2.83377427]
[1718584342329,0.00085,66835.0,66834.0,2.82977427]
[1718584342544,0.00085,66835.0,66834.0,2.84377427]
[1718584342744,0.00085,66835.0,66834.0,2.81977427]
[1718584343152,0.00085,66835.0,66834.0,2.78377427]
[1718584343326,0.00085,66835.0,66834.0,2.83377427]
[1718584343750,0.00085,66835.0,66834.0,2.32661504]
[1718584343951,0.00085,66835.0,66834.0,1.71696159]
[1718584344154,0.00085,66835.0,66834.0,1.68657282]
[1718584344355,0.00085,66835.0,66834.0,1.66696159]
[1718584344713,0.00085,66835.0,66834.0,1.56696159]
[1718584344856,0.00085,66835.0,66834.0,1.81620959]
[1718584345063,0.00085,66835.0,66834.0,1.83582082]
[1718584345264,0.00085,66835.0,66834.0,1.81620959]
[1718584345470,0.11325,66835.0,66834.0,1.06808959]
[1718584345704,0.06325,66835.0,66834.0,0.94401618]
[1718584345861,0.19025,66835.0,66834.0,0.81983505]
[1718584346059,0.19025,66835.0,66834.0,0.79683505]
[1718584346259,0.19025,66835.0,66834.0,0.78283505]
[1718584346747,0.19025,66835.0,66834.0,0.79683505]
[1718584347362,0.58950477,66835.0,66834.0,0.79683505]
[1718584347571,0.589116,66835.0,66834.0,0.79683505]
[1718584347769,0.589116,66835.0,66834.0,0.87651856]
[1718584347978,0.29026077,66835.0,66834.0,0.87651856]
[1718584348374,0.14063877,66835.0,66834.0,0.79683505]
[1718584348595,0.29026077,66835.0,66834.0,0.79683505]
[1718584348799,0.88874877,66835.0,66834.0,0.79683505]
[1718584349207,0.58950477,66835.0,66834.0,0.79683505]
[1718584349414,0.29026077,66835.0,66834.0,0.89951856]
[1718584350273,0.29026077,66835.0,66834.0,0.80583505]
[1718584350627,0.14025,66835.0,66834.0,0.80583505]
[1718584350842,0.14063877,66835.0,66834.0,0.81983505]
[1718584351049,0.29026077,66835.0,66834.0,0.81983505]
[1718584351603,0.29026077,66835.0,66834.0,0.90181856]
[1718584352064,0.29026077,66835.0,66834.0,0.88781856]
[1718584352797,0.29026077,66835.0,66834.0,0.88581856]
[1718584353008,0.14025,66835.0,66834.0,0.89981856]
[1718584353483,0.14063877,66835.0,66834.0,0.88781856]
[1718584353670,0.14063877,66835.0,66834.0,0.89981856]
[1718584353876,0.14063877,66835.0,66834.0,0.88581856]
[1718584354082,0.14063877,66835.0,66834.0,0.89981856]
[1718584354286,0.14063877,66835.0,66834.0,0.81783505]
[1718584354487,0.29026077,66835.0,66834.0,0.81783505]
[1718584355612,0.29026077,66835.0,66834.0,0.80383505]
[1718584355811,0.29026077,66835.0,66834.0,0.81783505]
[1718584356016,0.14025,66835.0,66834.0,0.88761856]
[1718584356163,0.14063877,66835.0,66834.0,0.88661856]
[1718584356372,0.14063877,66835.0,66834.0,0.90061856]
[1718584356841,0.14063877,66835.0,66834.0,0.88761856]
[1718584357493,0.29026077,66835.0,66834.0,0.81783505]
[1718584358357,0.58950477,66835.0,66834.0,0.81783505]
[1718584358583,0.88874877,66835.0,66834.0,0.81783505]
[1718584358832,0.88874877,66835.0,66834.0,0.6355]
[1718584358833,1.18799277,66835.0,66834.0,0.6355]
[1718584359267,1.18799277,66835.0,66834.0,0.6485]
[1718584359690,1.18799277,66835.0,66834.0,0.6215]
[1718584360104,0.88874877,66835.0,66834.0,0.6475]
[1718584360737,0.88874877,66835.0,66834.0,0.71407473]
[1718584362466,0.88874877,66835.0,66834.0,0.6475]
[1718584363419,0.14025,66835.0,66834.0,0.6475]
[1718584363624,0.58950477,66835.0,66834.0,0.6475]
[1718584364071,0.88874877,66835.0,66834.0,0.6475]
[1718584367467,0.88874877,66835.0,66834.0,0.6335]
[1718584367648,0.93844877,66835.0,66834.0,0.6475]
[1718584367994,0.93844877,66835.0,66834.0,0.6355]
[1718584368208,1.23769277,66835.0,66834.0,0.6125]
[1718584368429,1.33769277,66835.0,66834.0,0.6125]
[1718584369070,1.33769277,66835.0,66834.0,0.5985]
[1718584369276,1.33769277,66835.0,66834.0,0.6125]
[1718584369475,1.33769277,66835.0,66834.0,0.6245]
[1718584369827,1.33769277,66835.0,66834.0,0.6105]
[1718584370032,1.33769277,66835.0,66834.0,0.6115]
[1718584370236,1.33769277,66835.0,66834.0,0.6085]
[1718584370613,1.23769277,66835.0,66834.0,0.6155]
[1718584370926,1.23769277,66835.0,66834.0,0.606435]
[1718584371165,1.63693677,66835.0,66834.0,0.610435]
[1718584371383,1.23769277,66835.0,66834.0,0.610435]
[1718584371601,1.18799277,66835.0,66834.0,0.610435]
[1718584371813,1.23769277,66835.0,66834.0,0.610435]
[1718584372014,1.33769277,66835.0,66834.0,0.610435]
[1718584375011,1.33769277,66835.0,66834.0,0.60527859]
[1718584375265,1.33769277,66835.0,66834.0,0.5977827]
[1718584376002,1.23769277,66835.0,66834.0,0.5977827]
[1718584378616,1.33769277,66835.0,66834.0,0.5977827]
[1718584379241,1.23769277,66835.0,66834.0,0.5977827]
[1718584379456,1.23769277,66835.0,66834.0,0.5937827]
[1718584379698,1.33769277,66835.0,66834.0,0.5937827]
[1718584379885,1.33769277,66835.0,66834.0,0.5897827]
[1718584380431,1.34069277,66835.0,66834.0,0.5867827]
[1718584381497,1.34069277,66835.0,66834.0,0.58640479]
[1718584383130,0.89174877,66835.0,66834.0,0.58640479]
[1718584383337,0.99174877,66835.0,66834.0,0.58640479]
[1718584383554,1.04144877,66835.0,66834.0,0.58640479]
[1718584384169,1.34069277,66835.0,66834.0,0.58640479]
[1718584384592,1.34069277,66835.0,66834.0,0.58740479]
[1718584384975,0.94144877,66835.0,66834.0,0.58740479]
[1718584385359,1.34069277,66835.0,66834.0,0.58740479]
[1718584385771,1.04144877,66835.0,66834.0,0.58640479]
[1718584386952,1.34069277,66835.0,66834.0,0.58640479]
[1718584387419,1.34069277,66835.0,66834.0,0.58556692]
[1718584388271,0.94144877,66835.0,66834.0,0.58556692]
[1718584388698,1.34069277,66835.0,66834.0,0.58556692]
[1718584389329,1.04144877,66835.0,66834.0,0.58556692]
[1718584389534,0.94144877,66835.0,66834.0,0.58556692]
[1718584389686,1.04144877,66835.0,66834.0,0.57806692]
[1718584390304,1.34069277,66835.0,66834.0,0.57806692]
[1718584390975,0.6372471,66835.0,66834.0,0.57806692]
[1718584391205,0.9364911,66835.0,66834.0,0.57806692]
[1718584391373,0.8467911,66835.0,66834.0,0.63587361]
[1718584391519,0.5475471,66835.0,66834.0,0.63587361]
[1718584391917,0.49980477,66835.0,66834.0,0.63587361]
[1718584392388,0.79904877,66835.0,66834.0,0.58206692]
[1718584392791,0.79904877,66835.0,66834.0,0.57806692]
[1718584393002,0.49980477,66835.0,66834.0,0.57906692]
[1718584393215,0.4958471,66835.0,66834.0,0.57906692]
[1718584393464,0.2463031,66835.0,66834.0,0.57806692]
[1718584393694,0.2463031,66835.0,66834.0,0.64214361]
[1718584394147,0.2463031,66835.0,66834.0,0.57806692]
[1718584394834,0.0966811,66835.0,66834.0,0.57806692]
[1718584395487,0.0966811,66835.0,66834.0,0.57906692]
[1718584395708,0.0469811,66835.0,66834.0,0.57906692]
[1718584395923,0.05193877,66835.0,66834.0,0.57806692]
[1718584396976,0.49980477,66835.0,66834.0,0.57806692]
[1718584397593,0.00123877,66835.0,66834.0,0.57806692]
[1718584397801,0.05093877,66835.0,66834.0,0.57806692]
[1718584398004,0.05093877,66835.0,66834.0,0.58206692]
[1718584398207,0.20056077,66835.0,66834.0,0.58206692]
[1718584398414,0.20056077,66835.0,66834.0,0.58306692]
[1718584398870,0.20056077,66835.0,66834.0,0.58206692]
[1718584399279,0.20056077,66835.0,66834.0,0.58306692]
[1718584399706,0.00123877,66835.0,66834.0,0.58306692]
[1718584399911,0.05093877,66835.0,66834.0,0.58306692]
[1718584400542,0.20056077,66835.0,66834.0,0.58306692]
[1718584401507,0.49980477,66835.0,66834.0,0.58306692]
[1718584402501,0.20056077,66835.0,66834.0,0.58306692]
[1718584402934,0.49980477,66835.0,66834.0,0.58306692]
[1718584403137,0.54465048,66835.0,66834.0,0.58306692]
[1718584403717,0.24540648,66835.0,66834.0,0.58306692]
[1718584404584,0.54465048,66835.0,66834.0,0.58306692]
[1718584405966,0.5475716,66835.0,66834.0,0.58306692]
[1718584406412,1.24888246,66835.0,66834.0,0.58306692]
[1718584406626,1.94529686,66835.0,66834.0,0.14986692]
[1718584406805,1.83318258,66835.0,66834.0,0.14986692]
[1718584407600,1.83318258,66835.0,66834.0,0.14586692]
[1718584407810,1.79860299,66835.0,66834.0,0.14486692]
[1718584408264,1.74890299,66835.0,66834.0,0.14486692]
[1718584408682,1.81233972,66835.0,66834.0,0.14486692]
[1718584409968,1.80933972,66835.0,66834.0,0.14486692]
[1718584410237,1.81233972,66835.0,66834.0,0.14486692]
[1718584411032,1.81196839,66835.0,66834.0,0.14486692]
[1718584411237,1.96405618,66835.0,66834.0,0.14486692]
[1718584411792,1.76226839,66835.0,66834.0,0.14486692]
[1718584411999,1.81196839,66835.0,66834.0,0.14486692]
[1718584414184,1.71196839,66835.0,66834.0,0.14486692]
[1718584414405,1.81196839,66835.0,66834.0,0.14486692]
[1718584415760,1.71196839,66835.0,66834.0,0.14486692]
[1718584417410,1.82411136,66835.0,66834.0,0.14486692]
[1718584417752,1.79054406,66835.0,66834.0,0.14486692]
[1718584417905,1.8267549,66835.0,66834.0,0.14486692]
[1718584419035,1.82677695,66835.0,66834.0,0.14486692]
[1718584419507,1.22828895,66835.0,66834.0,0.14486692]
[1718584420352,1.52753295,66835.0,66834.0,0.14486692]
[1718584421983,1.67962074,66835.0,66834.0,0.14486692]
[1718584422616,1.62753295,66835.0,66834.0,0.14486692]
[1718584422820,1.52753295,66835.0,66834.0,0.14486692]
[1718584423206,1.62753295,66835.0,66834.0,0.14486692]
[1718584423571,1.52753295,66835.0,66834.0,0.14486692]
[1718584424371,1.62753295,66835.0,66834.0,0.14486692]
[1718584424598,1.52753295,66835.0,66834.0,0.14486692]
[1718584424792,1.77962074,66835.0,66834.0,0.14486692]
[1718584427583,1.52753295,66835.0,66834.0,0.14486692]
[1718584428455,1.62753295,66835.0,66834.0,0.14486692]
[1718584430774,1.6255305,66835.0,66834.0,0.14486692]
[1718584432467,1.6255305,66835.0,66834.0,0.14444517]
[1718584432943,1.51340184,66835.0,66834.0,0.14444517]
[1718584433173,1.81264584,66835.0,66834.0,0.14444517]
[1718584433381,1.51340184,66835.0,66834.0,0.14444517]
[1718584433588,1.9247734,66835.0,66834.0,0.14444517]
[1718584433737,1.6255294,66835.0,66834.0,0.14444517]
[1718584434567,1.59309833,66835.0,66834.0,0.14444517]
[1718584434774,1.82477589,66835.0,66834.0,0.14444517]
[1718584435173,1.8126499,66835.0,66834.0,0.14444517]
[1718584435600,1.7629499,66835.0,66834.0,0.14444517]
[1718584435804,1.92477707,66835.0,66834.0,0.14444517]
[1718584435958,1.82477707,66835.0,66834.0,0.14444517]
[1718584436368,1.8126499,66835.0,66834.0,0.14444517]
[1718584436782,1.7126499,66835.0,66834.0,0.14444517]
[1718584437111,1.6629499,66835.0,66834.0,0.14444517]
[1718584437321,1.7126499,66835.0,66834.0,0.14444517]
[1718584438346,1.3637059,66835.0,66834.0,0.14444517]
[1718584438543,1.4134059,66835.0,66834.0,0.14444517]
[1718584438950,1.7126499,66835.0,66834.0,0.14444517]
[1718584439368,1.4134059,66835.0,66834.0,0.14444517]
[1718584439573,1.52553244,66835.0,66834.0,0.14444517]
[1718584440430,1.52553361,66835.0,66834.0,0.14444517]
[1718584441581,0.47309697,66835.0,66834.0,0.28664517]
[1718584441782,0.25839081,66835.0,66834.0,0.28664517]
[1718584442166,0.40801281,66835.0,66834.0,0.28664517]
[1718584442585,0.35133036,66835.0,66834.0,0.28664517]
[1718584442997,0.65057436,66835.0,66834.0,0.28664517]
[1718584443568,0.60048559,66835.0,66834.0,0.28664517]
[1718584443729,0.15647112,66835.0,66834.0,0.28664517]
[1718584443932,0.20131959,66835.0,66834.0,0.28664517]
[1718584444176,0.20170836,66835.0,66834.0,0.28664517]
[1718584444362,0.30648189,66835.0,66834.0,0.28664517]
[1718584444562,0.30648189,66835.0,66834.0,0.28621197]
[1718584444906,0.10715989,66835.0,66834.0,0.28621197]
[1718584445116,0.15647112,66835.0,66834.0,0.28621197]
[1718584445323,0.35094159,66835.0,66834.0,0.28621197]
[1718584445526,0.20131959,66835.0,66834.0,0.28621197]
[1718584445738,0.20132338,66835.0,66834.0,0.28621197]
[1718584446581,0.15647112,66835.0,66834.0,0.28621197]
[1718584446804,0.15685989,66835.0,66834.0,0.28621197]
[1718584447185,0.15385989,66835.0,66834.0,0.28621197]
[1718584447387,0.34833415,66835.0,66834.0,0.28621197]
[1718584447753,0.30348189,66835.0,66834.0,0.28621197]
[1718584448386,0.15385989,66835.0,66834.0,0.28621197]
[1718584448588,0.19871215,66835.0,66834.0,0.28621197]
[1718584448943,0.09871215,66835.0,66834.0,0.28621197]
[1718584450169,0.24833415,66835.0,66834.0,0.28621197]
[1718584450376,0.34833415,66835.0,66834.0,0.28621197]
[1718584451729,0.34794538,66835.0,66834.0,0.28621197]
[1718584451950,0.34294538,66835.0,66834.0,0.31483317]
[1718584452151,0.34512915,66835.0,66834.0,0.31483317]
[1718584452350,0.34551792,66835.0,66834.0,0.31483317]
[1718584452994,0.19550715,66835.0,66834.0,0.31483317]
[1718584453197,0.09550715,66835.0,66834.0,0.31483317]
[1718584453496,0.09589592,66835.0,66834.0,0.31483317]
[1718584453677,0.24551792,66835.0,66834.0,0.31483317]
[1718584453882,0.34551792,66835.0,66834.0,0.31483317]
[1718584454056,0.34551792,66835.0,66834.0,0.28621197]
[1718584454315,0.64476192,66835.0,66834.0,0.28621197]
[1718584454525,0.64476192,66835.0,66834.0,0.22201197]
[1718584454753,0.66719622,66835.0,66834.0,0.22201197]
[1718584455371,1.67045781,66835.0,66834.0,0.14401197]
[1718584455730,1.33879766,66835.0,66834.0,0.14401197]
[1718584456213,1.67045709,66835.0,66834.0,0.14401197]
[1718584456416,1.76016162,66835.0,66834.0,0.14401197]
[1718584456742,1.67045709,66835.0,66834.0,0.14401197]
[1718584456951,1.76016162,66835.0,66834.0,0.14401197]
[1718584457656,1.5712905,66835.0,66834.0,0.14401197]
[1718584457853,1.53128669,66835.0,66834.0,0.14401197]
[1718584458156,1.53128825,66835.0,66834.0,0.14401197]
[1718584458382,1.62101006,66835.0,66834.0,0.14401197]
[1718584458547,1.53128825,66835.0,66834.0,0.14401197]
[1718584459405,1.62101006,66835.0,66834.0,0.14401197]
[1718584459601,1.57131006,66835.0,66834.0,0.14401197]
[1718584459860,1.62101006,66835.0,66834.0,0.14401197]
[1718584460662,1.72101006,66835.0,66834.0,0.14401197]
[1718584460887,1.63128825,66835.0,66834.0,0.14401197]
[1718584462025,2.10625953,66835.0,66834.0,0.14401197]
[1718584462243,2.25834732,66835.0,66834.0,0.14401197]
[1718584462458,1.90940332,66835.0,66834.0,0.14401197]
[1718584462688,1.85910332,66835.0,66834.0,0.14401197]
[1718584463444,1.81918279,66835.0,66834.0,0.14401197]
[1718584465187,2.21842679,66835.0,66834.0,0.14401197]
[1718584465395,1.70701553,66835.0,66834.0,0.14401197]
[1718584465831,1.81918378,66835.0,66834.0,0.14401197]
[1718584466833,1.91918378,66835.0,66834.0,0.14401197]
[1718584467495,1.91931038,66835.0,66834.0,0.14401197]
[1718584468744,2.21855438,66835.0,66834.0,0.14401197]
[1718584468947,2.25847392,66835.0,66834.0,0.14401197]
[1718584469384,2.10638613,66835.0,66834.0,0.14401197]
[1718584471523,1.95668613,66835.0,66834.0,0.14401197]
[1718584471730,2.10420236,66835.0,66834.0,0.14401197]
[1718584475806,2.11637362,66835.0,66834.0,0.14401197]
[1718584475985,2.21638616,66835.0,66834.0,0.14401197]
[1718584476134,2.11638616,66835.0,66834.0,0.14401197]
[1718584476364,2.00342832,66835.0,66834.0,0.14401197]
[1718584476570,2.11559984,66835.0,66834.0,0.14401197]
[1718584476954,1.67235584,66835.0,66834.0,0.14401197]
[1718584477158,1.56018432,66835.0,66834.0,0.14401197]
[1718584477569,1.67235584,66835.0,66834.0,0.14401197]
[1718584477749,1.56018432,66835.0,66834.0,0.14401197]
[1718584478692,1.77235584,66835.0,66834.0,0.14401197]
[1718584478901,1.66018432,66835.0,66834.0,0.14401197]
[1718584479248,1.77235584,66835.0,66834.0,0.14401197]
[1718584480738,1.67235584,66835.0,66834.0,0.14401197]
[1718584481136,1.37311184,66835.0,66834.0,0.14401197]
[1718584482119,1.67235584,66835.0,66834.0,0.14401197]
[1718584482521,1.37311184,66835.0,66834.0,0.14401197]
[1718584483420,1.00174218,66835.0,66834.0,0.22321197]
[1718584483620,0.57491307,66835.0,66834.0,0.25173317]
[1718584483826,0.63099637,66835.0,66834.0,0.31273317]
[1718584484045,0.59895477,66835.0,66834.0,0.28421197]
[1718584484245,0.89819877,66835.0,66834.0,0.28421197]
[1718584486059,1.3196037,66835.0,66834.0,0.28421197]
[1718584486259,1.2298565,66835.0,66834.0,0.28421197]
[1718584486460,1.3196037,66835.0,66834.0,0.28421197]
[1718584487581,0.9306125,66835.0,66834.0,0.14401197]
[1718584487861,1.0203597,66835.0,66834.0,0.14401197]
[1718584488195,0.9306125,66835.0,66834.0,0.14401197]
[1718584488400,1.0203597,66835.0,66834.0,0.14401197]
[1718584488603,1.31960119,66835.0,66834.0,0.14401197]
[1718584488862,0.89819877,66835.0,66834.0,0.14401197]
[1718584488985,0.88090999,66835.0,66834.0,0.14401197]
[1718584489184,0.9101354,66835.0,66834.0,0.14401197]
[1718584489389,1.22985399,66835.0,66834.0,0.14401197]
[1718584490564,0.93060999,66835.0,66834.0,0.14401197]
[1718584491228,1.22985399,66835.0,66834.0,0.14401197]
[1718584491398,1.31960986,66835.0,66834.0,0.14401197]
[1718584491600,1.22985399,66835.0,66834.0,0.14401197]
[1718584492176,0.93060999,66835.0,66834.0,0.14401197]
[1718584492548,1.31961189,66835.0,66834.0,0.14401197]
[1718584492897,1.22985399,66835.0,66834.0,0.14401197]
[1718584493244,1.31961173,66835.0,66834.0,0.14401197]
[1718584493467,1.22985399,66835.0,66834.0,0.14401197]
[1718584493673,0.93060999,66835.0,66834.0,0.14401197]
[1718584494085,1.22985399,66835.0,66834.0,0.14401197]
[1718584496933,1.37066738,66835.0,66834.0,0.14401197]
[1718584498777,1.37071688,66835.0,66834.0,0.14401197]
[1718584499221,1.25848844,66835.0,66834.0,0.14401197]
[1718584499668,1.22986164,66835.0,66834.0,0.14401197]
[1718584499888,1.25938001,66835.0,66834.0,0.14401197]
[1718584502591,1.55862401,66835.0,66834.0,0.14401197]
[1718584502809,1.25938001,66835.0,66834.0,0.14401197]
[1718584505957,1.37162429,66835.0,66834.0,0.14401197]
[1718584506163,1.37123552,66835.0,66834.0,0.14401197]
[1718584506587,1.34257715,66835.0,66834.0,0.14401197]
[1718584506790,1.23033287,66835.0,66834.0,0.14401197]
[1718584507005,1.34257715,66835.0,66834.0,0.14401197]
[1718584507222,1.23033287,66835.0,66834.0,0.14401197]
[1718584507654,1.320123,66835.0,66834.0,0.14401197]
[1718584509177,1.32051177,66835.0,66834.0,0.14401197]
[1718584511161,1.27081177,66835.0,66834.0,0.14401197]
[1718584511353,1.32051177,66835.0,66834.0,0.14401197]
[1718584512847,1.02126777,66835.0,66834.0,0.17226317]
[1718584513056,1.02126777,66835.0,66834.0,0.14401197]
[1718584513269,1.32051177,66835.0,66834.0,0.14401197]
[1718584513679,1.02126777,66835.0,66834.0,0.14401197]
[1718584516867,1.32051177,66835.0,66834.0,0.14401197]
[1718584517721,1.02126777,66835.0,66834.0,0.14401197]
[1718584521451,1.020879,66835.0,66834.0,0.14401197]
[1718584521666,1.020879,66835.0,66834.0,0.17226317]
[1718584522081,1.02126777,66835.0,66834.0,0.14401197]
[1718584525265,1.23072164,66835.0,66834.0,0.14401197]
[1718584528412,1.34296592,66835.0,66834.0,0.14401197]
[1718584528814,1.23072164,66835.0,66834.0,0.14401197]
[1718584529018,1.32052471,66835.0,66834.0,0.14401197]
[1718584529826,1.32050742,66835.0,66834.0,0.14401197]
[1718584530440,1.23070464,66835.0,66834.0,0.14401197]
[1718584530865,1.18100464,66835.0,66834.0,0.14401197]
[1718584531065,1.23070464,66835.0,66834.0,0.14401197]
[1718584531270,1.34295812,66835.0,66834.0,0.14401197]
[1718584531502,1.23070464,66835.0,66834.0,0.14401197]
[1718584532572,1.34295812,66835.0,66834.0,0.14401197]
[1718584532719,1.59250212,66835.0,66834.0,0.14401197]
[1718584532917,1.64220212,66835.0,66834.0,0.14401197]
[1718584533183,1.55523059,66835.0,66834.0,0.14401197]
[1718584533508,1.55524654,66835.0,66834.0,0.14401197]
[1718584534785,1.59252002,66835.0,66834.0,0.14401197]
[1718584534995,1.6422157,66835.0,66834.0,0.14401197]
[1718584536079,1.64221472,66835.0,66834.0,0.14401197]
[1718584538273,1.18062692,66835.0,66834.0,0.14401197]
[1718584538483,0.58213892,66835.0,66834.0,0.14401197]
[1718584538705,0.06821245,66835.0,66834.0,0.4844384]
[1718584538904,0.00086,66835.0,66834.0,1.37166376]
[1718584539122,0.00086,66835.0,66834.0,0.75355653]
[1718584539328,0.00086,66835.0,66834.0,0.67928818]
[1718584539510,0.00086,66835.0,66834.0,0.69889498]
[1718584539761,0.00086,66835.0,66834.0,0.84851898]
[1718584540206,0.00086,66835.0,66834.0,0.70472667]
[1718584540373,0.00086,66835.0,66834.0,0.71372667]
[1718584541191,0.00086,66835.0,66834.0,0.71972667]
[1718584541598,0.00086,66835.0,66834.0,0.71372667]
[1718584542371,0.00086,66835.0,66834.0,0.56410267]
[1718584542571,0.00086,66835.0,66834.0,0.57010267]
[1718584543855,0.00472127,66835.0,66834.0,0.57010267]
[1718584544275,0.00472127,66835.0,66834.0,0.5897139]
[1718584544492,0.00472127,66835.0,66834.0,0.7393379]
[1718584544698,0.00086,66835.0,66834.0,0.7393379]
[1718584544914,0.00086,66835.0,66834.0,0.5897139]
[1718584545328,0.00086,66835.0,66834.0,0.49474702]
[1718584545560,0.00472356,66835.0,66834.0,0.49474702]
[1718584547310,0.15434556,66835.0,66834.0,0.49474702]
[1718584547741,0.00472356,66835.0,66834.0,0.66398225]
[1718584547942,0.00472356,66835.0,66834.0,0.76030748]
[1718584548147,0.00086,66835.0,66834.0,0.76030748]
[1718584548368,0.00086,66835.0,66834.0,0.61068348]
[1718584548777,0.0047264,66835.0,66834.0,0.61068348]
[1718584548989,0.00086,66835.0,66834.0,0.61068348]
[1718584549198,0.0047264,66835.0,66834.0,0.61068348]
[1718584549418,0.00086,66835.0,66834.0,0.61068348]
[1718584549627,0.0047264,66835.0,66834.0,0.51435825]
[1718584549833,0.00086,66835.0,66834.0,0.51435825]
[1718584550032,0.0047264,66835.0,66834.0,0.51435825]
[1718584550238,0.00086,66835.0,66834.0,0.51435825]
[1718584550451,0.0047264,66835.0,66834.0,0.51435825]
[1718584550661,0.0047264,66835.0,66834.0,1.26247825]
[1718584550662,0.00086,66835.0,66834.0,1.26247825]
[1718584550865,0.0047264,66835.0,66834.0,1.26247825]
[1718584551073,0.00086,66835.0,66834.0,1.11531804]
[1718584551711,0.00086,66835.0,66834.0,0.81607004]
[1718584553241,0.00086,66835.0,66834.0,1.11531804]
[1718584553448,0.449726,66835.0,66834.0,0.34265923]
[1718584553656,0.00086,66835.0,66834.0,0.34085923]
[1718584553864,0.00472838,66835.0,66834.0,0.34085923]
[1718584554074,0.00086,66835.0,66834.0,0.34085923]
[1718584554324,0.00472867,66835.0,66834.0,0.34085923]
[1718584554560,0.00086,66835.0,66834.0,0.42179488]
[1718584554778,0.00472867,66835.0,66834.0,0.34085923]
[1718584554993,0.00086,66835.0,66834.0,0.34085923]
[1718584555442,0.00472867,66835.0,66834.0,0.34085923]
[1718584556680,0.00472867,66835.0,66834.0,0.39186938]
[1718584556891,0.00472867,66835.0,66834.0,0.56110461]
[1718584557307,0.00086,66835.0,66834.0,0.41148061]
[1718584557969,0.00473026,66835.0,66834.0,0.41148061]
[1718584558173,0.00086,66835.0,66834.0,0.41148061]
[1718584558631,0.00473026,66835.0,66834.0,0.56110461]
[1718584558839,0.00086,66835.0,66834.0,0.41148061]
[1718584559662,0.00086,66835.0,66834.0,0.39186938]
[1718584559868,0.00086,66835.0,66834.0,0.41148061]
[1718584560451,0.00086,66835.0,66834.0,0.56110461]
[1718584560687,0.00086,66835.0,66834.0,0.41148061]
[1718584561031,0.00086,66835.0,66834.0,0.7131924]
[1718584561154,0.00086,66835.0,66834.0,0.5635684]
[1718584561351,0.00473026,66835.0,66834.0,0.5635684]
[1718584561562,0.00473026,66835.0,66834.0,0.54395717]
[1718584563265,0.00473026,66835.0,66834.0,0.5635684]
[1718584564293,0.00473026,66835.0,66834.0,1.3116884]
[1718584564513,0.00473026,66835.0,66834.0,1.48556924]
[1718584564716,0.00086,66835.0,66834.0,1.48556924]
[1718584565199,0.00086,66835.0,66834.0,1.54765692]
[1718584566373,0.00086,66835.0,66834.0,1.84690492]
[1718584566554,0.00086,66835.0,66834.0,1.90690492]
[1718584566774,0.00855,66851.0,66844.0,0.01961123]
[1718584566987,0.00855,66851.0,66850.0,0.01961123]
[1718584567122,0.00855,66851.0,66850.0,2.63114612]
[1718584567454,0.00855,66851.0,66850.0,2.84532159]